Cogmind - Beta 9.6 @@@ ROGUE MODE // 2020.04.29 @ 22:21:45 Player: Artem Result: Destroyed by Y-45 Defender with Beam Rifle Performance ------------- Evolutions (1) 500 Regions Visited (3) 600 Robots Destroyed (20) 100 Value Destroyed (454) 454 Prototype IDs (2) 40 Alien Tech Used (0) 0 Bonus (-88) -88 TOTAL SCORE: 1606 Bonus ------- Follower Combat Kills 14 Friendly Fire -102 Cogmind --------- Core Integrity 0/400 Matter 113/300 Energy 300/300 System Corruption 0% Temperature Cool (9) Movement Core (50) Location -9/Materials Parts ------- > --- POWER (1) -------- (None) > --- PROPULSION (3) --- (None) > --- UTILITY (3) ------ Medium Battery Structural Scanner > --- WEAPON (2) ------- (None) > --- INVENTORY (4) ---- Ion Engine Weight Redist. System High-powered Tractor Beam Peak State ------------ > --- POWER ------------ Cooled Ion Engine > --- PROPULSION ------- Hover Unit Flight Unit Flight Unit > --- UTILITY ---------- Medium Battery Structural Scanner Improved Sensor Array > --- WEAPON ----------- Improved Medium Laser Mini Grenade Launcher > --- INVENTORY -------- Ion Engine Weight Redist. System High-powered Tractor Beam [Rating: 15] Favorites ----------- Power Ion Engine Engine Ion Engine Propulsion Flight Unit Treads Light Treads Hover Unit Hover Unit Flight Unit Flight Unit Utility Structural Scanner Device Structural Scanner Storage Small Storage Unit Processor Terrain Scan Processor Weapon Assault Rifle Energy Gun Improved Medium Laser Ballistic Gun Assault Rifle Launcher Mini Grenade Launcher Build | -11 -10 -10 -9 ------- Run | Scr Mat Min Mat Slots Evolved 2 | . . . 2 Power . | . . . . Propulsion 1 | . . . 1 Utility 1 | . . . 1 Weapon . | . . . . Parts Attached 25 | 6 7 . 12 Power 3 | 1 1 . 1 Engine 3 | 1 1 . 1 Core . | . . . . Reactor . | . . . . Propulsion 8 | 2 3 . 3 Treads 3 | 2 1 . . Leg . | . . . . Wheel . | . . . . Hover 2 | . . . 2 Flight 3 | . 2 . 1 Utility 8 | 1 2 . 5 Device 5 | . 2 . 3 Storage 2 | 1 . . 1 Processor 1 | . . . 1 Hackware . | . . . . Protection . | . . . . Artifact . | . . . . Weapon 6 | 2 1 . 3 Energy Gun 1 | . . . 1 Energy Cannon . | . . . . Ballistic Gun 4 | 2 1 . 1 Ballistic Cannon . | . . . . Launcher 1 | . . . 1 Special Weapon . | . . . . Impact Weapon . | . . . . Slashing Weapon . | . . . . Piercing Weapon . | . . . . Special Melee Weapon . | . . . . Unidentified Prototypes 2 | . . . 2 Parts Lost 10 | . 2 . 8 Power 1 | . . . 1 Propulsion 5 | . 1 . 4 Utility 1 | . . . 1 Weapon 3 | . 1 . 2 Highest Loss Streak 4 | . 2 . 4 Average Slot Usage (%) 79 | . 83 71 76 Engine 12 | . 14 14 11 Treads 9 | . 19 . . Flight 13 | . 6 28 18 Device 14 | . 5 28 22 Storage 9 | . 12 . 8 Ballistic Gun 12 | . 24 . 2 Launcher 3 | . . . 9 Naked Turns . | . . . . Heaviest Build 16 | 13 14 7 16 Greatest Support 40 | 40 40 8 12 Greatest Overweight (x) 4 | . 4 . 4 Average Overweight (x) . | . . . . Largest Inventory Capacity 6 | 6 6 4 4 Average Capacity 4 | 4 5 4 4 Most Carried 4 | 4 2 1 4 Average Carried 1 | 1 . 1 2 Final Capacity 6 | 6 4 4 4 Final Carried 3 | 1 1 1 3 Class Distribution -------------------- 100% | Mutant Dominant Class ---------------- Mutant | -10/Materials Mutant | -10/Mines Mutant | -9/Materials Resources | -11 -10 -10 -9 ----------- Run | Scr Mat Min Mat Matter Collected 494 | 250 180 . 64 Remotely . | . . . . Salvage Created 445 | . 235 . 210 Parts 38 | . 14 . 24 Haulers Intercepted 1 | . . . 1 Recyclers Shooed . | . . . . Parts Field Recycled . | . . . . Retrieved Matter . | . . . . Parts Self-Destructed . | . . . . Prevented . | . . . . Kills | -11 -10 -10 -9 ------- Run | Scr Mat Min Mat Combat Hostiles Destroyed 13 | . 7 . 6 Guns 8 | . 7 . 1 AOE 5 | . . . 5 Classes Destroyed 8 | . 3 . 5 Builder 2 | . . . 2 Tunneler 1 | . . . 1 Hauler 1 | . . . 1 Operator 2 | . . . 2 Watcher 1 | . 1 . . Swarmer 5 | . 3 . 2 Grunt 6 | . 4 . 2 Sentry 2 | . . . 2 Best Kill Streak 7 | . 5 . 7 Combat Bots Only 5 | . 5 . 2 Max Kills in Single Turn 2 | . 1 . 2 Gunslinging . | . . . . Exploded 2 | . . . 2 Melee . | . . . . Uniques/NPCs Destroyed . | . . . . Combat | -11 -10 -10 -9 -------- Run | Scr Mat Min Mat Damage Taken 1340 | . 535 . 805 Core 488 | . 86 . 402 Absorbed by Shields . | . . . . Core Remaining (%) 82 | 100 . 65 . Volleys Fired 43 | . 23 . 20 Largest 2 | . 2 . 2 Hottest 86 | . 40 . 86 Shots Fired 61 | . 40 . 21 Gun 45 | . 40 . 5 Cannon . | . . . . Launcher 16 | . . . 16 Special . | . . . . Kinetic 41 | . 40 . 1 Thermal 4 | . . . 4 Explosive 16 | . . . 16 Electromagnetic . | . . . . Robot Hit Streak 13 | . 8 . 13 Robot Miss Streak 3 | . 3 . 3 Penetration Max . | . . . . Secondary Targets 3 | . 3 . . Max Gunslinging Chain 1 | . 1 . . Shots Hit Robots 44 | . 30 . 14 Core Hits 39 | . 15 . 24 Critical Hits . | . . . . Critical Kills . | . . . . Critical Parts Destroyed . | . . . . Melee Attacks . | . . . . Impact . | . . . . Slashing . | . . . . Piercing . | . . . . Sneak Attacks . | . . . . Combat Hostiles . | . . . . Follow-up Attacks . | . . . . Damage Inflicted 1350 | . 378 . 972 Guns 439 | . 378 . 61 Cannons . | . . . . Explosions 911 | . . . 911 Melee . | . . . . Ramming . | . . . . Kinetic 386 | . 378 . 8 Thermal 53 | . . . 53 Explosive 911 | . . . 911 Electromagnetic . | . . . . Impact . | . . . . Slashing . | . . . . Piercing . | . . . . Highest Corruption . | . . . . Average Corruption . | . . . . Corruption Purged . | . . . . Overload Shots . | . . . . Overflow Damage 9 | . . . 9 Projectiles . | . . . . Explosions 9 | . . . 9 Melee . | . . . . Knockbacks . | . . . . Impact . | . . . . Kinetic . | . . . . Secondary . | . . . . Self-Inflicted Damage 58 | . . . 58 Shots 2 | . . . 2 Rammed . | . . . . Targets Rammed . | . . . . Kicked . | . . . . Crushed . | . . . . Highest Temperature 39 | . 2 . 39 Average Temperature 13 | . 2 . 16 Received Heat Transfer 471 | . 153 . 318 Siege Activations . | . . . . Robots Corrupted . | . . . . Combat Hostiles . | . . . . Parts Fried . | . . . . Impact Corruptions . | . . . . Robots Melted . | . . . . Combat Hostiles . | . . . . Parts Melted . | . . . . Heat Transferred 111 | . . . 111 Parts Sabotaged . | . . . . Parts Stolen . | . . . . Parts Stripped . | . . . . Power Chain Reactions . | . . . . Missiles Intercepted . | . . . . Alert | -11 -10 -10 -9 ------- Run | Scr Mat Min Mat Peak Influence 321 | . 247 96 321 Average Influence 128 | . 92 96 204 Maximum Alert Level 1 | . 1 . 1 Low Security (%) 69 | 100 86 100 37 Level 1 30 | . 13 . 62 Level 2 . | . . . . Level 3 . | . . . . Level 4 . | . . . . Level 5 . | . . . . High Security . | . . . . Max Security . | . . . . Squads Dispatched 5 | . 2 . 3 Investigation 1 | . . . 1 Extermination . | . . . . Reinforcement 4 | . 2 . 2 Assault . | . . . . Garrison . | . . . . Intercept . | . . . . Construction Impeded 1 | . . . 1 Haulers Reinforced . | . . . . Stealth | -11 -10 -10 -9 --------- Run | Scr Mat Min Mat Distress Signals . | . . . . Communications Jammed . | . . . . Distress Signals . | . . . . Times Spotted 34 | . 19 . 15 Peak Tracking Total 9 | . 9 . 9 Tactical Retreats 2 | . 1 . 1 Traps | -11 -10 -10 -9 ------- Run | Scr Mat Min Mat Traps Triggered . | . . . . Indirectly . | . . . . Trap Hack Attempts . | . . . . Triggered . | . . . . Disarmed . | . . . . Reprogrammed . | . . . . Reused . | . . . . Traps Extracted . | . . . . Installed . | . . . . Triggered . | . . . . Machines | -11 -10 -10 -9 ---------- Run | Scr Mat Min Mat Machines Disabled 3 | . 1 . 2 Max in Single Turn 1 | . 1 . 1 Machines Sabotaged . | . . . . Garrisons Compromised . | . . . . Overloaded Fab Kills . | . . . . Fab Network Shutdowns . | . . . . Hacking | -11 -10 -10 -9 --------- Run | Scr Mat Min Mat Machines Accessed 4 | . 1 . 3 Terminals 4 | . 1 . 3 Fabricators . | . . . . Repair Stations . | . . . . Recycling Units . | . . . . Scanalyzers . | . . . . Garrison Access . | . . . . Total Hacks 7 | . 1 . 6 Successful 3 | . . . 3 Failed 4 | . 1 . 3 Catastrophic 1 | . . . 1 Database Lockouts . | . . . . Manual 1 | . 1 . . Terminals 7 | . 1 . 6 Fabricators . | . . . . Repair Stations . | . . . . Recycling Units . | . . . . Scanalyzers . | . . . . Garrison Access . | . . . . Terminal Hacks 3 | . . . 3 Record 2 | . . . 2 Zone Layout 1 | . . . 1 Fabricator Hacks . | . . . . Repair Station Hacks . | . . . . Recycling Unit Hacks . | . . . . Scanalyzer . | . . . . Garrison Access Hacks . | . . . . Unauthorized Hacks . | . . . . Terminals . | . . . . Fabricators . | . . . . Repair Stations . | . . . . Recycling Units . | . . . . Scanalyzers . | . . . . Garrison Access . | . . . . Data Cores Recovered 1 | . . . 1 Used . | . . . . Hacking Detections 2 | . . . 2 Full Trace Events 1 | . . . 1 Feedback Events . | . . . . Feedback Blocked . | . . . . Robot Schematics Acquired . | . . . . Robots Built . | . . . . Matter . | . . . . Time . | . . . . Total Robot Build Rating . | . . . . Part Schematics Acquired . | . . . . Parts Built . | . . . . Matter . | . . . . Time . | . . . . Total Part Build Rating . | . . . . Parts Repaired . | . . . . Time . | . . . . Parts Recycled . | . . . . Recycled Matter . | . . . . Retrieved Matter . | . . . . Retrieved Components . | . . . . Parts Scanalyzed . | . . . . Part Schematics Acquired . | . . . . Parts Damaged . | . . . . Bothacking | -11 -10 -10 -9 ------------ Run | Scr Mat Min Mat Used RIF Installer . | . . . . Robots Hacked . | . . . . Non-combat . | . . . . Combat . | . . . . Robot Hacks Applied . | . . . . Relay Couplers Released . | . . . . Robots Rewired . | . . . . Allies Hacked . | . . . . Hacks Repelled . | . . . . Allies | -11 -10 -10 -9 -------- Run | Scr Mat Min Mat Total Allies 2 | . . 2 . Largest Group 2 | . . 2 2 Highest-Rated Group 49 | . . 49 49 Highest-Rated Ally 31 | . . 31 31 Total Orders . | . . . . Ally Attacks 6 | . . . 6 Total Damage 86 | . . . 86 Kills 2 | . . . 2 Allies Corrupted . | . . . . Allies Melted . | . . . . Intel | -11 -10 -10 -9 ------- Run | Scr Mat Min Mat Robot Analysis Total . | . . . . Derelict Logs Recovered . | . . . . Drone Launches . | . . . . Drone Recoveries . | . . . . Exploration | -11 -10 -10 -9 ------------- Run | Scr Mat Min Mat Turns Passed 767 | 72 333 58 304 Spaces Moved 709 | 47 184 126 352 Core 41 | 13 5 . 23 Treads 143 | 34 109 . . Legs . | . . . . Wheels . | . . . . Hover 8 | . . . 8 Flight 517 | . 70 126 321 Fastest Speed 34 | 50 37 37 34 Average Speed 75 | 129 117 37 59 Slowest Speed 280 | 160 250 37 280 Overloaded Moves . | . . . . Propulsion Burnouts . | . . . . Robots Hopped . | . . . . Cave-ins Triggered . | . . . . Exploration Rate (%) 28 | 3 40 47 22 Regions Visited 3 Branch Regions 1 Pre-discovered Areas . | . . . . Known Exits Taken . | . . . . Unknown Exits Taken 3 | 1 1 1 . Scrap Searched . | . . . . Spaces Dug . | . . . . Terrain Destroyed 97 | . . . 97 Melee . | . . . . Projectile . | . . . . AOE 97 | . . . 97 Actions | -11 -10 -10 -9 --------- Run | Scr Mat Min Mat Total 876 | 57 262 136 421 Wait 74 | . 36 11 27 Move 706 | 46 183 125 352 Hop . | . . . . Pick Up 16 | 5 6 . 5 Fast Attach 11 | 2 2 . 7 Attach 9 | 4 4 . 1 Detach 1 | . . . 1 Swap 5 | . 1 . 4 Drop 11 | . 7 . 4 Fire 43 | . 23 . 20 Melee . | . . . . Ram . | . . . . Kick . | . . . . Crush . | . . . . Escape Stasis . | . . . . Rewire . | . . . . Trap . | . . . . Miscellaneous . | . . . . Route ------- -11/Scrapyard -10/Materials -10/Mines -9/Materials History --------- Turn | Location | Event 4 | -11/Scrapyard | Discovered new exit (range 15) 73 | -11/Scrapyard | Entered Materials 318 | -10/Materials | Build established: Mutant 392 | -10/Materials | Discovered new exit (range 14) 406 | -10/Materials | Entered Mines 444 | -10/Mines | Discovered new exit (range 15) 464 | -10/Mines | Entered Materials 464 | -9/Materials | Accompanied by 2 allies 464 | -9/Materials | Evolved 2 slots: Propulsion x1, Utility x1 469 | -9/Materials | Led the pair of lost Derelicts to an unsafe place 708 | -9/Materials | Core integrity fell below 50% 743 | -9/Materials | Lost 4 parts (2n2w) 760 | -9/Materials | Core integrity fell below 20% 768 | -9/Materials | Destroyed by Y-45 Defender with Beam Rifle Last Messages --------------- 00703_ U-05 Engineer builds a Wall. 00704_ U-05 Engineer lays Concrete. 00711_ U-05 Engineer destroyed. 00711_ K-01 Serf collects debris. 00712_ U-05 Engineer lays Concrete. 00712_ Mni. Grenade Launcher destroyed. 00714_ U-05 Engineer lays Concrete. 00715_ K-01 Serf collects debris. 00715_ R-06 Scavenger collects Wheel. 00715_ U-05 Engineer lays Concrete. 00717_ U-05 Engineer builds a Wall. 00717_ U-05 Engineer lays Concrete. 00727_ U-05 Engineer destroyed. 00735_ Acquired Hover Unit. 00740_ Connecting with Terminal... 00740_ ALERT: Suspicious activity at Terminal M006. Dispatching Investigation squad. 00746_ Hover Unit destroyed. 00761_ Cld. Ion Engine destroyed. 00765_ Imp. Sensor Array destroyed. Map ----- +----------------------------------------------------+ | ??????????# # #?????????????????????????? | | ??????????# + """ #?????????????????????????? | | ??????????# # """ #?????????????????????????? | | ?????????## # """ #?????????????????????????? | | ?????????## # #?????????????????????????? | | ????????## # """ #?????????????????????????? | | ????????# # """ #?????????????????????????? | | ????????### # """ #?????????????????????????? | | ?########## # #?????????????????????????? | | ?# ## # ########?????????????????????????? | | ?# ## ###?????#######????????????????????? | | ?# # #########"""""#######??????????????? | | ?# # #### ##""T""# #??????????????? | | ?# # ! #??????????????? | | ?# + [= #??????????????? | | ?# # """ T #??????????????? | | ?# # # " #??????????????? | | ?# ###+###### # "" ##??????????????? | | ?# # # ! ######??????????? | | ?# # # % # ! #??????????? | | ?######### """ ## # # ??????? | | ?????????#""""" ##[ = # + #????????? | | ?????????#"""" ## % # #??????????? | | ?????????#"""" ##% * # #??????????? | | ?????????# """ ## #######+#######??????????? | | ?????????# ## #@""""" [#??????????? | | ?????????############ #g""T"" #??????????? | | ??????????# # #Yg """ #??????????? | | ??????????# # # YY """ #??????????? | | ??????????# ## # """ #??????????? | | ??????????# ## # * #??????????? | | ??????????# ## %*# #############??????????? | | ??????????# ## = ###??????????????????????? | | ??????????# ## #????????????????????????? | | ?????#????# ## #????????????????????????? | | ????# ###/## # # #????????????????????????? | | ??? ! #????????????????????????? | | ??? !% #????????????????????????? | | ??? * #????????????????????????? | | ????# ###### ####????????????????????????? | | ????###????????# = ##???????????????????????????? | | ??????????????# *##????????????????????????????? | | ????????????? #?????????????????????????????? | | ????????????" #?????????????????????????????? | | ???????????"" #?????????????????????????????? | | ?????????? ??????????????????????????????? | | ??????????#+# ??????????????????????????????? | | ?????????? ??????????????????????????????? | | ????????? ??????????????????????????????? | | ?????????? ??????????????????????????????? | +----------------------------------------------------+ Best States ------------- Heat Dissipation 38 Energy Generation 14 Energy Capacity 480 Matter Stores 300 Matter Capacity 300 Sight Range 16 Robot Scan Range 13 Terrain Scan Density 85 Evasion (%) 63 Recoil Reduction 2 Item Schematics ----------------- None Robot Schematics ------------------ None Fabricated ------------ Nothing Alien Tech Used ----------------- None Achievements -------------- Loot Pinata Challenges ------------ None Game ------ Seed HellfireWarpGun Manual? 0 Play Time 00:21:06 Cumulative 3.7 hours Start 2020.04.29 @ 22:03:50 End 2020.04.29 @ 22:21:45 Sessions 1 Manual Loads 0 Difficulty Rogue Special Mode None Game No. 9 Rogue 9 Adventurer 0 Explorer 0 Win Type - Total 0 Types 0/0/0/0/0/0/0 Lore% 7 Gallery% 12 Achievement% 6 Wizard Run 0 Options --------- ASCII 0 Keyboard 0 Movement Numpad Keybinds 0 Fullscreen 2 Font 16/Smallcaps Map View 76x50 Tactical HUD 1 Map Filters NONE Filters NONE Steam X RUN: 6470159b-f9d9-4e08-a18b-394ca28a4b9b